[Event "Titled Tuesday Blitz November 14 Early 2023"]
[White "Osinovsky, Stepan"]
[Black "Sharapov, Evgeny"]
[WhiteFideId "4157354"]
[BlackFideId "14103133"]
[WhiteElo "2437"]
[BlackElo "2561"]
[Result "0-1"]
[Round "8"]
[TimeControl "180+1"]
[Date "2023.11.14"]
[WhiteClock "0:00:00"]
[BlackClock "0:01:41"]
[Board "95"]

1. e4 {[%clk 0:03:00]}  c5 {[%clk 0:02:59]} 2. Nf3 {[%clk 0:03:00]}  d6 {[%clk 0:02:59]} 3. d4 {[%clk 0:02:59]}  cxd4 {[%clk 0:03:00]} 4. Nxd4 {[%clk 0:03:00]}  Nf6 {[%clk 0:03:00]} 5. Nc3 {[%clk 0:03:01]}  Nbd7 {[%clk 0:02:59]} 6. Be3 {[%clk 0:02:59]}  g6 {[%clk 0:02:59]} 7. Qd2 {[%clk 0:02:55]}  h5 {[%clk 0:02:59]} 8. O-O-O {[%clk 0:02:54]}  Bg7 {[%clk 0:02:59]} 9. Kb1 {[%clk 0:02:54]}  a6 {[%clk 0:02:59]} 10. f4 {[%clk 0:02:50]}  O-O {[%clk 0:02:58]} 11. h3 {[%clk 0:02:43]}  Nc5 {[%clk 0:02:58]} 12. Bd3 {[%clk 0:02:21]}  Nxd3 {[%clk 0:02:57]} 13. cxd3 {[%clk 0:02:20]}  b5 {[%clk 0:02:54]} 14. g4 {[%clk 0:02:10]}  b4 {[%clk 0:02:54]} 15. Nce2 {[%clk 0:02:04]}  Bb7 {[%clk 0:02:54]} 16. gxh5 {[%clk 0:01:06]}  Nxh5 {[%clk 0:02:53]} 17. f5 {[%clk 0:01:00]}  Qd7 {[%clk 0:02:39]} 18. Rhg1 {[%clk 0:00:54]}  Kh7 {[%clk 0:02:39]} 19. Ng3 {[%clk 0:00:39]}  Nxg3 {[%clk 0:02:33]} 20. Rxg3 {[%clk 0:00:36]}  Be5 {[%clk 0:02:34]} 21. Rg4 {[%clk 0:00:30]}  Rh8 {[%clk 0:02:25]} 22. fxg6+ {[%clk 0:00:23]}  fxg6 {[%clk 0:02:25]} 23. Rdg1 {[%clk 0:00:22]}  Rag8 {[%clk 0:02:23]} 24. Nf3 {[%clk 0:00:19]}  Bf6 {[%clk 0:02:18]} 25. Bd4 {[%clk 0:00:18]}  e5 {[%clk 0:02:17]} 26. Be3 {[%clk 0:00:17]}  d5 {[%clk 0:02:17]} 27. Bg5 {[%clk 0:00:15]}  Qe7 {[%clk 0:02:10]} 28. Bxf6 {[%clk 0:00:11]}  Qxf6 {[%clk 0:02:10]} 29. Nh4 {[%clk 0:00:09]}  dxe4 {[%clk 0:02:01]} 30. dxe4 {[%clk 0:00:10]}  Rg7 {[%clk 0:01:52]} 31. Nf5 {[%clk 0:00:09]}  Bxe4+ {[%clk 0:01:51]} 32. Rxe4 {[%clk 0:00:08]}  gxf5 {[%clk 0:01:49]} 33. Rh4+ {[%clk 0:00:05]}  Qxh4 {[%clk 0:01:46]} 34. Rxg7+ {[%clk 0:00:04]}  Kxg7 {[%clk 0:01:46]} 35. Qd7+ {[%clk 0:00:05]}  Kg6 {[%clk 0:01:43]} 36. a3 {[%clk 0:00:00]}  Qe4+ {[%clk 0:01:41]} 0-1


[Site "https://www.chess.com"]

[Event "Titled Tuesday Blitz November 14 Early 2023"]
[White "FREDERICKtheMATE"]
[Black "Azali, Tannaz"]
[BlackFideId "12537721"]
[WhiteElo "2559"]
[BlackElo "2412"]
[Result "1-0"]
[Round "8"]
[TimeControl "180+1"]
[Date "2023.11.14"]
[WhiteClock "0:02:14"]
[BlackClock "0:01:58"]
[Board "96"]

1. Nf3 {[%clk 0:03:00]}  Nf6 {[%clk 0:02:57]} 2. d4 {[%clk 0:03:01]}  e6 {[%clk 0:02:54]} 3. c4 {[%clk 0:03:02]}  Bb4+ {[%clk 0:02:53]} 4. Bd2 {[%clk 0:03:02]}  Qe7 {[%clk 0:02:53]} 5. a3 {[%clk 0:02:59]}  Bxd2+ {[%clk 0:02:53]} 6. Nbxd2 {[%clk 0:03:00]}  b6 {[%clk 0:02:53]} 7. e4 {[%clk 0:02:59]}  d6 {[%clk 0:02:51]} 8. h3 {[%clk 0:02:56]}  Bb7 {[%clk 0:02:50]} 9. Bd3 {[%clk 0:02:56]}  e5 {[%clk 0:02:51]} 10. d5 {[%clk 0:02:56]}  O-O {[%clk 0:02:51]} 11. b4 {[%clk 0:02:56]}  a5 {[%clk 0:02:51]} 12. Nb3 {[%clk 0:02:55]}  axb4 {[%clk 0:02:49]} 13. axb4 {[%clk 0:02:56]}  Nbd7 {[%clk 0:02:49]} 14. O-O {[%clk 0:02:54]}  Nh5 {[%clk 0:02:48]} 15. g3 {[%clk 0:02:52]}  Rxa1 {[%clk 0:02:46]} 16. Qxa1 {[%clk 0:02:52]}  Ra8 {[%clk 0:02:46]} 17. Qb2 {[%clk 0:02:51]}  g6 {[%clk 0:02:39]} 18. Ra1 {[%clk 0:02:50]}  Qd8 {[%clk 0:02:39]} 19. Kg2 {[%clk 0:02:44]}  Ng7 {[%clk 0:02:37]} 20. Nfd2 {[%clk 0:02:41]}  f5 {[%clk 0:02:31]} 21. f3 {[%clk 0:02:26]}  c6 {[%clk 0:02:27]} 22. Rxa8 {[%clk 0:02:21]}  Qxa8 {[%clk 0:02:27]} 23. Qa1 {[%clk 0:02:22]}  Qxa1 {[%clk 0:02:21]} 24. Nxa1 {[%clk 0:02:23]}  b5 {[%clk 0:02:21]} 25. dxc6 {[%clk 0:02:17]}  Bxc6 {[%clk 0:02:20]} 26. cxb5 {[%clk 0:02:17]}  Bb7 {[%clk 0:02:21]} 27. Nab3 {[%clk 0:02:17]}  fxe4 {[%clk 0:02:17]} 28. fxe4 {[%clk 0:02:15]}  d5 {[%clk 0:02:16]} 29. Nc5 {[%clk 0:02:14]}  dxe4 {[%clk 0:01:58]} 30. Bc4+ {[%clk 0:02:14]} 1-0


[Site "https://www.chess.com"]

[Event "Titled Tuesday Blitz November 14 Early 2023"]
[White "Bommini Mounika Akshaya"]
[Black "Yaksin, Oleg"]
[WhiteFideId "25019872"]
[BlackFideId "24105880"]
[WhiteElo "2317"]
[BlackElo "2540"]
[Result "0-1"]
[Round "8"]
[TimeControl "180+1"]
[Date "2023.11.14"]
[WhiteClock "0:00:09"]
[BlackClock "0:00:48"]
[Board "99"]

1. d4 {[%clk 0:03:00]}  Nf6 {[%clk 0:02:56]} 2. c4 {[%clk 0:03:00]}  e6 {[%clk 0:02:56]} 3. Nc3 {[%clk 0:03:00]}  Bb4 {[%clk 0:02:56]} 4. e3 {[%clk 0:02:58]}  O-O {[%clk 0:02:53]} 5. Bd2 {[%clk 0:02:58]}  d5 {[%clk 0:02:52]} 6. Nf3 {[%clk 0:02:57]}  Nbd7 {[%clk 0:02:50]} 7. cxd5 {[%clk 0:02:54]}  exd5 {[%clk 0:02:49]} 8. Bd3 {[%clk 0:02:54]}  Re8 {[%clk 0:02:44]} 9. O-O {[%clk 0:02:52]}  c6 {[%clk 0:02:41]} 10. Qc2 {[%clk 0:02:32]}  Qe7 {[%clk 0:02:37]} 11. a3 {[%clk 0:02:28]}  Bd6 {[%clk 0:02:33]} 12. b4 {[%clk 0:02:22]}  a6 {[%clk 0:02:31]} 13. Rfe1 {[%clk 0:02:21]}  Ne4 {[%clk 0:02:31]} 14. Na4 {[%clk 0:02:08]}  f5 {[%clk 0:02:23]} 15. Nc5 {[%clk 0:02:04]}  Ndf6 {[%clk 0:02:15]} 16. h3 {[%clk 0:01:59]}  g5 {[%clk 0:02:14]} 17. a4 {[%clk 0:01:37]}  g4 {[%clk 0:02:12]} 18. hxg4 {[%clk 0:01:34]}  fxg4 {[%clk 0:02:04]} 19. Nh2 {[%clk 0:01:10]}  g3 {[%clk 0:01:47]} 20. fxg3 {[%clk 0:01:08]}  Bxg3 {[%clk 0:01:47]} 21. Rf1 {[%clk 0:01:05]}  Bxh2+ {[%clk 0:01:46]} 22. Kxh2 {[%clk 0:01:05]}  Ng4+ {[%clk 0:01:46]} 23. Kg1 {[%clk 0:00:56]}  Qh4 {[%clk 0:01:45]} 24. Rf4 {[%clk 0:00:35]}  Qh2+ {[%clk 0:01:37]} 25. Kf1 {[%clk 0:00:35]}  Nxd2+ {[%clk 0:00:51]} 26. Qxd2 {[%clk 0:00:20]}  Nxe3+ {[%clk 0:00:51]} 27. Ke2 {[%clk 0:00:09]}  Qxf4 {[%clk 0:00:48]} 0-1


[Site "https://www.chess.com"]

[Event "Titled Tuesday Blitz November 14 Early 2023"]
[White "Herman, Matthew"]
[Black "ilya2700"]
[WhiteFideId "2028964"]
[WhiteElo "2529"]
[BlackElo "2284"]
[Result "1-0"]
[Round "8"]
[TimeControl "180+1"]
[Date "2023.11.14"]
[WhiteClock "0:00:07"]
[BlackClock "0:00:00"]
[Board "100"]

1. e4 {[%clk 0:03:00]}  c5 {[%clk 0:03:00]} 2. Nf3 {[%clk 0:03:00]}  e6 {[%clk 0:03:00]} 3. d4 {[%clk 0:03:01]}  cxd4 {[%clk 0:03:00]} 4. Nxd4 {[%clk 0:03:02]}  Nf6 {[%clk 0:03:00]} 5. Nc3 {[%clk 0:03:02]}  Nc6 {[%clk 0:03:00]} 6. Ndb5 {[%clk 0:03:02]}  Bb4 {[%clk 0:02:59]} 7. a3 {[%clk 0:03:00]}  Bxc3+ {[%clk 0:02:59]} 8. Nxc3 {[%clk 0:03:01]}  d5 {[%clk 0:03:00]} 9. Bd3 {[%clk 0:03:02]}  dxe4 {[%clk 0:02:58]} 10. Nxe4 {[%clk 0:03:01]}  Nxe4 {[%clk 0:02:58]} 11. Bxe4 {[%clk 0:03:02]}  Qxd1+ {[%clk 0:02:58]} 12. Kxd1 {[%clk 0:03:03]}  Bd7 {[%clk 0:02:59]} 13. Be3 {[%clk 0:02:50]}  O-O-O {[%clk 0:02:58]} 14. Kc1 {[%clk 0:02:50]}  Rhf8 {[%clk 0:02:56]} 15. f3 {[%clk 0:02:43]}  f5 {[%clk 0:02:55]} 16. Bxc6 {[%clk 0:02:43]}  Bxc6 {[%clk 0:02:54]} 17. Bxa7 {[%clk 0:02:44]}  g5 {[%clk 0:02:50]} 18. Rg1 {[%clk 0:02:02]}  g4 {[%clk 0:02:30]} 19. f4 {[%clk 0:01:59]}  Rd5 {[%clk 0:02:27]} 20. Re1 {[%clk 0:01:37]}  Rfd8 {[%clk 0:02:21]} 21. Be3 {[%clk 0:01:10]}  e5 {[%clk 0:02:05]} 22. b3 {[%clk 0:01:05]}  exf4 {[%clk 0:01:06]} 23. Bxf4 {[%clk 0:01:04]}  Rd4 {[%clk 0:01:06]} 24. g3 {[%clk 0:01:04]}  Re4 {[%clk 0:01:05]} 25. Kb2 {[%clk 0:00:58]}  Rde8 {[%clk 0:01:02]} 26. Rxe4 {[%clk 0:00:39]}  Rxe4 {[%clk 0:01:03]} 27. Rd1 {[%clk 0:00:38]}  Re2 {[%clk 0:00:48]} 28. Rd2 {[%clk 0:00:38]}  Rxd2 {[%clk 0:00:46]} 29. Bxd2 {[%clk 0:00:39]}  Kd7 {[%clk 0:00:47]} 30. c4 {[%clk 0:00:35]}  Kd6 {[%clk 0:00:40]} 31. Bf4+ {[%clk 0:00:33]}  Kc5 {[%clk 0:00:40]} 32. Kc3 {[%clk 0:00:27]}  Bf3 {[%clk 0:00:35]} 33. b4+ {[%clk 0:00:17]}  Kc6 {[%clk 0:00:33]} 34. b5+ {[%clk 0:00:18]}  Kc5 {[%clk 0:00:25]} 35. a4 {[%clk 0:00:13]}  Be2 {[%clk 0:00:13]} 36. Be3+ {[%clk 0:00:13]}  Kd6 {[%clk 0:00:14]} 37. Kd4 {[%clk 0:00:14]}  b6 {[%clk 0:00:11]} 38. Bf4+ {[%clk 0:00:13]}  Ke6 {[%clk 0:00:10]} 39. Bc7 {[%clk 0:00:12]}  Bd1 {[%clk 0:00:09]} 40. Bxb6 {[%clk 0:00:08]}  Bxa4 {[%clk 0:00:09]} 41. Bc7 {[%clk 0:00:07]}  h5 {[%clk 0:00:08]} 42. Kc5 {[%clk 0:00:04]}  Kd7 {[%clk 0:00:05]} 43. Bf4 {[%clk 0:00:04]}  Kc8 {[%clk 0:00:04]} 44. Kb6 {[%clk 0:00:04]}  Bc2 {[%clk 0:00:04]} 45. c5 {[%clk 0:00:05]}  Be4 {[%clk 0:00:03]} 46. c6 {[%clk 0:00:05]}  Bf3 {[%clk 0:00:01]} 47. Kc5 {[%clk 0:00:06]}  Be4 {[%clk 0:00:01]} 48. b6 {[%clk 0:00:06]}  Bf3 {[%clk 0:00:00]} 49. b7+ {[%clk 0:00:07]} 1-0


[Site "https://www.chess.com"]

[Event "Titled Tuesday Blitz November 14 Early 2023"]
[White "Suduvasachmatai"]
[Black "Kovacsy, Barnabas"]
[BlackFideId "769290"]
[WhiteElo "2232"]
[BlackElo "2520"]
[Result "1-0"]
[Round "8"]
[TimeControl "180+1"]
[Date "2023.11.14"]
[WhiteClock "0:00:11"]
[BlackClock "0:00:17"]
[Board "101"]

1. e4 {[%clk 0:03:00]}  c5 {[%clk 0:02:59]} 2. c3 {[%clk 0:02:58]}  d5 {[%clk 0:02:56]} 3. exd5 {[%clk 0:02:50]}  Qxd5 {[%clk 0:02:57]} 4. d4 {[%clk 0:02:50]}  Nf6 {[%clk 0:02:56]} 5. Nf3 {[%clk 0:02:50]}  e6 {[%clk 0:02:56]} 6. Be3 {[%clk 0:02:48]}  cxd4 {[%clk 0:02:55]} 7. cxd4 {[%clk 0:02:48]}  Nc6 {[%clk 0:02:52]} 8. Nc3 {[%clk 0:02:47]}  Qd8 {[%clk 0:02:52]} 9. Bb5 {[%clk 0:02:46]}  Bd7 {[%clk 0:02:50]} 10. O-O {[%clk 0:02:45]}  Be7 {[%clk 0:02:50]} 11. Re1 {[%clk 0:02:42]}  O-O {[%clk 0:02:50]} 12. Ne5 {[%clk 0:02:40]}  a6 {[%clk 0:02:46]} 13. Bd3 {[%clk 0:02:31]}  Nb4 {[%clk 0:02:33]} 14. Bb1 {[%clk 0:02:28]}  Nbd5 {[%clk 0:02:24]} 15. Qc2 {[%clk 0:02:12]}  Rc8 {[%clk 0:02:15]} 16. Bg5 {[%clk 0:02:09]}  g6 {[%clk 0:02:15]} 17. Qd3 {[%clk 0:01:58]}  b5 {[%clk 0:02:09]} 18. Qf3 {[%clk 0:01:45]}  Nxc3 {[%clk 0:02:04]} 19. bxc3 {[%clk 0:01:43]}  Nd5 {[%clk 0:02:04]} 20. Bh6 {[%clk 0:01:32]}  Rxc3 {[%clk 0:01:59]} 21. Bd3 {[%clk 0:01:30]}  Bf6 {[%clk 0:01:48]} 22. Bxf8 {[%clk 0:01:25]}  Kxf8 {[%clk 0:01:49]} 23. Rac1 {[%clk 0:01:21]}  b4 {[%clk 0:01:43]} 24. Rxc3 {[%clk 0:01:17]}  bxc3 {[%clk 0:01:43]} 25. Be4 {[%clk 0:01:13]}  Bxe5 {[%clk 0:01:17]} 26. dxe5 {[%clk 0:01:09]}  Qa5 {[%clk 0:01:16]} 27. Bxd5 {[%clk 0:01:04]}  exd5 {[%clk 0:01:16]} 28. Rc1 {[%clk 0:01:01]}  d4 {[%clk 0:01:14]} 29. Qa8+ {[%clk 0:00:47]}  Kg7 {[%clk 0:01:13]} 30. Qe4 {[%clk 0:00:32]}  Qa3 {[%clk 0:01:08]} 31. Rf1 {[%clk 0:00:19]}  Qa4 {[%clk 0:01:00]} 32. Qf4 {[%clk 0:00:13]}  Bf5 {[%clk 0:00:39]} 33. g4 {[%clk 0:00:12]}  Bd3 {[%clk 0:00:32]} 34. Qf6+ {[%clk 0:00:11]}  Kf8 {[%clk 0:00:30]} 35. e6 {[%clk 0:00:11]}  Ke8 {[%clk 0:00:24]} 36. Qxf7+ {[%clk 0:00:10]}  Kd8 {[%clk 0:00:24]} 37. e7+ {[%clk 0:00:10]}  Kc7 {[%clk 0:00:25]} 38. e8=Q+ {[%clk 0:00:11]}  Kb6 {[%clk 0:00:17]} 39. Qxa4 {[%clk 0:00:11]} 1-0


[Site "https://www.chess.com"]

[Event "Titled Tuesday Blitz November 14 Early 2023"]
[White "Mayaud, Raphael"]
[Black "Lukovic, Vladimir"]
[WhiteFideId "627151"]
[BlackFideId "942952"]
[WhiteElo "2416"]
[BlackElo "2675"]
[Result "0-1"]
[Round "8"]
[TimeControl "180+1"]
[Date "2023.11.14"]
[WhiteClock "0:00:00"]
[BlackClock "0:00:17"]
[Board "104"]

1. d4 {[%clk 0:02:52]}  d5 {[%clk 0:02:57]} 2. c4 {[%clk 0:02:51]}  c6 {[%clk 0:02:58]} 3. Nf3 {[%clk 0:02:51]}  Nf6 {[%clk 0:02:57]} 4. Nc3 {[%clk 0:02:51]}  g6 {[%clk 0:02:57]} 5. cxd5 {[%clk 0:02:49]}  cxd5 {[%clk 0:02:56]} 6. Bf4 {[%clk 0:02:50]}  Bg7 {[%clk 0:02:56]} 7. e3 {[%clk 0:02:50]}  O-O {[%clk 0:02:56]} 8. Be2 {[%clk 0:02:48]}  Nh5 {[%clk 0:02:50]} 9. Bg5 {[%clk 0:02:48]}  h6 {[%clk 0:02:50]} 10. Bh4 {[%clk 0:02:48]}  g5 {[%clk 0:02:50]} 11. Bg3 {[%clk 0:02:49]}  Nxg3 {[%clk 0:02:50]} 12. hxg3 {[%clk 0:02:50]}  Nc6 {[%clk 0:02:49]} 13. O-O {[%clk 0:02:49]}  Na5 {[%clk 0:02:41]} 14. Rc1 {[%clk 0:02:46]}  e6 {[%clk 0:02:37]} 15. Bd3 {[%clk 0:02:43]}  Bd7 {[%clk 0:02:36]} 16. Bb1 {[%clk 0:02:41]}  f5 {[%clk 0:02:29]} 17. Ne5 {[%clk 0:02:10]}  Bxe5 {[%clk 0:02:20]} 18. dxe5 {[%clk 0:02:10]}  Nc4 {[%clk 0:02:21]} 19. Qh5 {[%clk 0:02:01]}  Kg7 {[%clk 0:02:16]} 20. g4 {[%clk 0:01:34]}  Qe8 {[%clk 0:01:59]} 21. Qxe8 {[%clk 0:01:29]}  Raxe8 {[%clk 0:02:00]} 22. gxf5 {[%clk 0:01:29]}  Nxe5 {[%clk 0:01:42]} 23. fxe6 {[%clk 0:01:29]}  Bxe6 {[%clk 0:01:42]} 24. Nb5 {[%clk 0:01:14]}  Re7 {[%clk 0:01:30]} 25. b3 {[%clk 0:00:56]}  a6 {[%clk 0:01:29]} 26. Nd4 {[%clk 0:00:56]}  Kf6 {[%clk 0:01:24]} 27. Rc3 {[%clk 0:00:54]}  Nf7 {[%clk 0:01:11]} 28. Rfc1 {[%clk 0:00:53]}  Nd6 {[%clk 0:01:12]} 29. Rc7 {[%clk 0:00:50]}  Rff7 {[%clk 0:01:11]} 30. Rxe7 {[%clk 0:00:33]}  Rxe7 {[%clk 0:01:12]} 31. Bd3 {[%clk 0:00:32]}  h5 {[%clk 0:01:09]} 32. Rc5 {[%clk 0:00:27]}  h4 {[%clk 0:01:06]} 33. f3 {[%clk 0:00:21]}  Bf7 {[%clk 0:01:00]} 34. Kf2 {[%clk 0:00:20]}  Rd7 {[%clk 0:00:50]} 35. Rc3 {[%clk 0:00:19]}  Ke7 {[%clk 0:00:48]} 36. f4 {[%clk 0:00:19]}  Kf6 {[%clk 0:00:48]} 37. Rc5 {[%clk 0:00:17]}  Re7 {[%clk 0:00:48]} 38. fxg5+ {[%clk 0:00:17]}  Kxg5 {[%clk 0:00:46]} 39. e4 {[%clk 0:00:15]}  Rxe4 {[%clk 0:00:44]} 40. Nf3+ {[%clk 0:00:13]}  Kf6 {[%clk 0:00:44]} 41. Rc7 {[%clk 0:00:12]}  Re7 {[%clk 0:00:44]} 42. Rc5 {[%clk 0:00:12]}  Ne4+ {[%clk 0:00:30]} 43. Bxe4 {[%clk 0:00:11]}  dxe4 {[%clk 0:00:30]} 44. Nxh4 {[%clk 0:00:11]}  e3+ {[%clk 0:00:29]} 45. Ke1 {[%clk 0:00:11]}  Re4 {[%clk 0:00:28]} 46. Nf3 {[%clk 0:00:11]}  Rg4 {[%clk 0:00:28]} 47. Kf1 {[%clk 0:00:10]}  Bg6 {[%clk 0:00:29]} 48. Kg1 {[%clk 0:00:10]}  Be4 {[%clk 0:00:28]} 49. Kf1 {[%clk 0:00:07]}  Rg3 {[%clk 0:00:21]} 50. Rc3 {[%clk 0:00:07]}  Bxf3 {[%clk 0:00:21]} 51. gxf3 {[%clk 0:00:07]}  Rxf3+ {[%clk 0:00:21]} 52. Ke2 {[%clk 0:00:08]}  Rf2+ {[%clk 0:00:21]} 53. Kxe3 {[%clk 0:00:09]}  Rxa2 {[%clk 0:00:22]} 54. Kd4 {[%clk 0:00:09]}  Ra5 {[%clk 0:00:20]} 55. Rc7 {[%clk 0:00:08]}  Rb5 {[%clk 0:00:20]} 56. Kc4 {[%clk 0:00:07]}  Ke6 {[%clk 0:00:21]} 57. b4 {[%clk 0:00:07]}  Kd6 {[%clk 0:00:21]} 58. Rh7 {[%clk 0:00:07]}  Kc6 {[%clk 0:00:21]} 59. Rh6+ {[%clk 0:00:07]}  Kc7 {[%clk 0:00:22]} 60. Rh7+ {[%clk 0:00:08]}  Kb8 {[%clk 0:00:23]} 61. Rh8+ {[%clk 0:00:08]}  Ka7 {[%clk 0:00:23]} 62. Rh7 {[%clk 0:00:09]}  Rg5 {[%clk 0:00:24]} 63. Rf7 {[%clk 0:00:08]}  Rh5 {[%clk 0:00:24]} 64. Kb3 {[%clk 0:00:08]}  Rh4 {[%clk 0:00:25]} 65. Ka3 {[%clk 0:00:08]}  Kb6 {[%clk 0:00:25]} 66. Rf5 {[%clk 0:00:08]}  Kc6 {[%clk 0:00:25]} 67. Rg5 {[%clk 0:00:08]}  b6 {[%clk 0:00:26]} 68. Rg6+ {[%clk 0:00:08]}  Kb5 {[%clk 0:00:26]} 69. Rg5+ {[%clk 0:00:08]}  Kc4 {[%clk 0:00:26]} 70. Rg6 {[%clk 0:00:07]}  Rh3+ {[%clk 0:00:26]} 71. Ka4 {[%clk 0:00:07]}  b5+ {[%clk 0:00:25]} 72. Ka5 {[%clk 0:00:07]}  Ra3+ {[%clk 0:00:26]} 73. Kb6 {[%clk 0:00:07]}  Kxb4 {[%clk 0:00:26]} 74. Kb7 {[%clk 0:00:07]}  a5 {[%clk 0:00:26]} 75. Rg4+ {[%clk 0:00:07]}  Kb3 {[%clk 0:00:26]} 76. Kb6 {[%clk 0:00:08]}  b4 {[%clk 0:00:26]} 77. Kb5 {[%clk 0:00:08]}  Kc3 {[%clk 0:00:18]} 78. Rg3+ {[%clk 0:00:07]}  Kd4 {[%clk 0:00:18]} 79. Rg4+ {[%clk 0:00:07]}  Ke5 {[%clk 0:00:19]} 80. Rg2 {[%clk 0:00:07]}  Ra1 {[%clk 0:00:18]} 81. Rc2 {[%clk 0:00:05]}  b3 {[%clk 0:00:17]} 82. Rb2 {[%clk 0:00:05]}  a4 {[%clk 0:00:18]} 83. Kb4 {[%clk 0:00:05]}  Kd4 {[%clk 0:00:18]} 84. Rd2+ {[%clk 0:00:05]}  Ke3 {[%clk 0:00:17]} 85. Rh2 {[%clk 0:00:04]}  Ra2 {[%clk 0:00:18]} 86. Rh3+ {[%clk 0:00:04]}  Kf4 {[%clk 0:00:18]} 87. Rh1 {[%clk 0:00:03]}  b2 {[%clk 0:00:17]} 88. Kc3 {[%clk 0:00:00]}  a3 {[%clk 0:00:17]} 0-1


[Site "https://www.chess.com"]

[Event "Titled Tuesday Blitz November 14 Early 2023"]
[White "Wu, Derek"]
[Black "Nastase, Robert-Paul"]
[WhiteFideId "30914558"]
[BlackFideId "1221175"]
[WhiteElo "2658"]
[BlackElo "2410"]
[Result "1-0"]
[Round "8"]
[TimeControl "180+1"]
[Date "2023.11.14"]
[WhiteClock "0:01:12"]
[BlackClock "0:00:04"]
[Board "105"]

1. d4 {[%clk 0:03:00]}  a6 {[%clk 0:02:57]} 2. e4 {[%clk 0:03:00]}  c6 {[%clk 0:02:57]} 3. Bd3 {[%clk 0:02:58]}  d5 {[%clk 0:02:57]} 4. e5 {[%clk 0:02:59]}  c5 {[%clk 0:02:52]} 5. dxc5 {[%clk 0:02:57]}  Nc6 {[%clk 0:02:49]} 6. f4 {[%clk 0:02:52]}  e6 {[%clk 0:02:49]} 7. Be3 {[%clk 0:02:50]}  d4 {[%clk 0:02:43]} 8. Bf2 {[%clk 0:02:50]}  Bxc5 {[%clk 0:02:43]} 9. a3 {[%clk 0:02:51]}  a5 {[%clk 0:02:27]} 10. Nd2 {[%clk 0:02:50]}  f5 {[%clk 0:02:08]} 11. exf6 {[%clk 0:02:25]}  Nxf6 {[%clk 0:02:07]} 12. Ne4 {[%clk 0:02:26]}  Nxe4 {[%clk 0:02:05]} 13. Bxe4 {[%clk 0:02:26]}  Kd7 {[%clk 0:00:57]} 14. Qh5 {[%clk 0:02:18]}  b6 {[%clk 0:00:36]} 15. Nf3 {[%clk 0:02:10]}  Bb7 {[%clk 0:00:27]} 16. O-O-O {[%clk 0:02:09]}  Kc7 {[%clk 0:00:23]} 17. Bxc6 {[%clk 0:02:03]}  Bxc6 {[%clk 0:00:21]} 18. Bxd4 {[%clk 0:01:58]}  Qe7 {[%clk 0:00:16]} 19. Rhe1 {[%clk 0:01:46]}  Rad8 {[%clk 0:00:15]} 20. Bxc5 {[%clk 0:01:43]}  Qxc5 {[%clk 0:00:14]} 21. Qf7+ {[%clk 0:01:29]}  Kb8 {[%clk 0:00:14]} 22. Qxg7 {[%clk 0:01:19]}  Rhg8 {[%clk 0:00:12]} 23. Rxd8+ {[%clk 0:01:17]}  Rxd8 {[%clk 0:00:11]} 24. Ne5 {[%clk 0:01:15]}  Rc8 {[%clk 0:00:07]} 25. Nxc6+ {[%clk 0:01:11]}  Rxc6 {[%clk 0:00:06]} 26. Qe5+ {[%clk 0:01:11]}  Kb7 {[%clk 0:00:06]} 27. Qxc5 {[%clk 0:01:11]}  Rxc5 {[%clk 0:00:04]} 28. Rxe6 {[%clk 0:01:12]} 1-0


[Site "https://www.chess.com"]

[Event "Titled Tuesday Blitz November 14 Early 2023"]
[White "Bodnaruk, Anastasia"]
[Black "Melikhov, Evgeny V."]
[WhiteFideId "4181751"]
[BlackFideId "4122046"]
[WhiteElo "2616"]
[BlackElo "2380"]
[Result "1/2-1/2"]
[Round "8"]
[TimeControl "180+1"]
[Date "2023.11.14"]
[WhiteClock "0:02:05"]
[BlackClock "0:00:59"]
[Board "110"]

1. e4 {[%clk 0:02:58]}  e5 {[%clk 0:02:59]} 2. Nf3 {[%clk 0:02:58]}  Nc6 {[%clk 0:03:00]} 3. Bb5 {[%clk 0:02:58]}  a6 {[%clk 0:03:00]} 4. Ba4 {[%clk 0:02:55]}  Nf6 {[%clk 0:02:59]} 5. O-O {[%clk 0:02:55]}  Nxe4 {[%clk 0:02:59]} 6. Re1 {[%clk 0:02:54]}  Nc5 {[%clk 0:02:59]} 7. Bxc6 {[%clk 0:02:51]}  dxc6 {[%clk 0:02:56]} 8. Nxe5 {[%clk 0:02:50]}  Be7 {[%clk 0:02:56]} 9. d4 {[%clk 0:02:50]}  Ne6 {[%clk 0:02:56]} 10. c3 {[%clk 0:02:50]}  O-O {[%clk 0:02:55]} 11. Be3 {[%clk 0:02:49]}  f6 {[%clk 0:02:53]} 12. Nd3 {[%clk 0:02:46]}  f5 {[%clk 0:02:51]} 13. f4 {[%clk 0:02:45]}  Rf7 {[%clk 0:02:47]} 14. Ne5 {[%clk 0:02:45]}  Rf8 {[%clk 0:02:42]} 15. Nd2 {[%clk 0:02:43]}  c5 {[%clk 0:02:38]} 16. Ndf3 {[%clk 0:02:35]}  cxd4 {[%clk 0:02:36]} 17. Nxd4 {[%clk 0:02:33]}  Nxd4 {[%clk 0:02:35]} 18. Bxd4 {[%clk 0:02:32]}  c6 {[%clk 0:02:24]} 19. Qb3+ {[%clk 0:02:31]}  Qd5 {[%clk 0:02:23]} 20. Nxc6 {[%clk 0:02:28]}  bxc6 {[%clk 0:02:20]} 21. Rxe7 {[%clk 0:02:27]}  Qxb3 {[%clk 0:02:12]} 22. axb3 {[%clk 0:02:28]}  Rf7 {[%clk 0:02:11]} 23. Rae1 {[%clk 0:02:26]}  Bd7 {[%clk 0:02:02]} 24. Kf2 {[%clk 0:02:24]}  Rb8 {[%clk 0:01:52]} 25. b4 {[%clk 0:02:24]}  a5 {[%clk 0:01:42]} 26. Bc5 {[%clk 0:02:22]}  axb4 {[%clk 0:01:41]} 27. Bxb4 {[%clk 0:02:22]}  c5 {[%clk 0:01:40]} 28. Bxc5 {[%clk 0:02:22]}  Rxb2+ {[%clk 0:01:38]} 29. R1e2 {[%clk 0:02:22]}  Rxe2+ {[%clk 0:01:29]} 30. Rxe2 {[%clk 0:02:22]}  Bc6 {[%clk 0:01:26]} 31. Rd2 {[%clk 0:02:21]}  Rd7 {[%clk 0:01:26]} 32. Rxd7 {[%clk 0:02:17]}  Bxd7 {[%clk 0:01:25]} 33. Ke3 {[%clk 0:02:17]}  Kf7 {[%clk 0:01:26]} 34. Kd4 {[%clk 0:02:16]}  Ke6 {[%clk 0:01:26]} 35. Bf8 {[%clk 0:02:16]}  Bc6 {[%clk 0:01:25]} 36. g3 {[%clk 0:02:15]}  Be4 {[%clk 0:01:21]} 37. Bxg7 {[%clk 0:02:13]}  h5 {[%clk 0:01:19]} 38. Kc5 {[%clk 0:02:13]}  Bd3 {[%clk 0:01:15]} 39. c4 {[%clk 0:02:13]}  Be2 {[%clk 0:01:15]} 40. Bf8 {[%clk 0:02:12]}  Bf1 {[%clk 0:01:12]} 41. Kd4 {[%clk 0:02:12]}  Be2 {[%clk 0:01:10]} 42. c5 {[%clk 0:02:11]}  Bf3 {[%clk 0:01:11]} 43. Kc4 {[%clk 0:02:12]}  Kd7 {[%clk 0:01:06]} 44. Kb5 {[%clk 0:02:11]}  Bg2 {[%clk 0:01:02]} 45. Kc4 {[%clk 0:02:10]}  Ke6 {[%clk 0:00:59]} 46. Kd4 {[%clk 0:02:05]}  Bc6 {[%clk 0:00:59]} 1/2-1/2


[Site "https://www.chess.com"]